bitfinex/quotes_BTCUSD_20250616
["timestamp","ask_amount","ask_price","bid_price","bid_amount"]
[1750117215489,0.83264962,107380.0,107370.0,0.39112541]
[1750117215700,0.83265023,107380.0,107370.0,0.39112541]
[1750117215814,0.83565023,107380.0,107370.0,0.39112541]
[1750117216015,0.72087558,107380.0,107370.0,0.39112541]
[1750117216469,0.73039666,107380.0,107370.0,0.39112541]
[1750117216676,0.73039622,107380.0,107370.0,0.39112541]
[1750117216897,0.3638737,107380.0,107370.0,0.39112541]
[1750117217109,0.3484737,107380.0,107370.0,0.48732717]
[1750117217944,0.3484737,107380.0,107370.0,0.31964717]
[1750117218152,0.3484737,107380.0,107370.0,0.48732717]
[1750117220006,0.67085084,107380.0,107370.0,0.48732717]
[1750117220977,0.68595084,107380.0,107370.0,0.48732717]
[1750117221402,0.3484737,107380.0,107370.0,0.48732717]
[1750117221700,0.67085084,107380.0,107370.0,0.48732717]
[1750117221824,0.68595084,107380.0,107370.0,0.48732717]
[1750117222482,0.69526286,107380.0,107370.0,0.48732717]
[1750117222683,0.72958734,107380.0,107370.0,0.31964717]
[1750117222973,0.72958725,107380.0,107370.0,0.48724717]
[1750117223441,1.02130343,107380.0,107370.0,0.37237911]
[1750117223573,1.02130343,107380.0,107370.0,0.39100576]
[1750117223974,0.73889979,107380.0,107370.0,0.40031874]
[1750117224418,0.74821242,107380.0,107370.0,0.40031874]
[1750117224819,0.92515543,107380.0,107370.0,0.21409261]
[1750117225081,0.92515543,107380.0,107370.0,0.39100576]
[1750117225294,0.72027566,107380.0,107370.0,0.40031822]
[1750117225496,0.397898,107380.0,107370.0,0.40031822]
[1750117225796,0.42583589,107380.0,107370.0,0.39100524]
[1750117226001,0.72958751,107380.0,107370.0,0.40031822]
[1750117226157,0.3484737,107380.0,107370.0,0.49655998]
[1750117226368,0.67085084,107380.0,107370.0,0.49655998]
[1750117226740,0.70457506,107380.0,107370.0,0.49655998]
[1750117226940,0.70457497,107380.0,107370.0,0.49655998]
[1750117227145,0.71388725,107380.0,107370.0,0.49655998]
[1750117227613,0.69526286,107380.0,107370.0,0.49655998]
[1750117227762,0.70457506,107380.0,107370.0,0.49655998]
[1750117227976,0.92485466,107380.0,107370.0,0.21409235]
[1750117228187,0.71997506,107380.0,107370.0,0.39096542]
[1750117228407,0.71997514,107380.0,107370.0,0.39096542]
[1750117228583,0.73860031,107380.0,107370.0,0.38165244]
[1750117228788,0.92485543,107380.0,107370.0,0.39096559]
[1750117228987,0.92485543,107380.0,107370.0,0.39092559]
[1750117229221,0.71997514,107380.0,107370.0,0.40023857]
[1750117229505,0.68016286,107380.0,107370.0,0.49648033]
[1750117229703,0.67085084,107380.0,107370.0,0.49648033]
[1750117230436,0.68016286,107380.0,107370.0,0.49648033]
[1750117230790,0.70517506,107380.0,107370.0,0.49648033]
[1750117231251,0.81772428,107380.0,107370.0,0.40023857]
[1750117231460,0.83634902,107380.0,107370.0,0.40023857]
[1750117231691,0.7401998,107380.0,107370.0,0.40023857]
[1750117231904,0.74951234,107380.0,107370.0,0.40023857]
[1750117233036,0.7401998,107380.0,107370.0,0.40023857]
[1750117233497,0.73088734,107380.0,107370.0,0.40023857]
[1750117233923,0.7401998,107380.0,107370.0,0.40023857]
[1750117234125,0.74951234,107380.0,107370.0,0.40023857]
[1750117234281,0.73088778,107380.0,107370.0,0.40023857]
[1750117234540,0.73088769,107380.0,107370.0,0.40023857]
[1750117234997,0.74020023,107380.0,107370.0,0.40023857]
[1750117235523,0.74951286,107380.0,107370.0,0.23271857]
[1750117235723,0.8456626,107380.0,107370.0,0.39084559]
[1750117235923,0.9357678,107380.0,107370.0,0.39084559]
[1750117236175,0.74951338,107380.0,107370.0,0.40015865]
[1750117236540,0.92645552,107380.0,107370.0,0.40015865]
[1750117236744,0.40875919,107350.0,107340.0,0.1956231]
[1750117236999,0.73113633,107350.0,107340.0,0.4685807]
[1750117237202,0.72182154,107350.0,107340.0,0.4685807]
[1750117237648,0.91768778,107350.0,107340.0,0.45926486]
[1750117237923,0.95256143,107350.0,107340.0,0.46858079]
[1750117238138,0.22135577,107340.0,107330.0,0.20486224]
[1750117238365,0.37310822,107340.0,107330.0,0.48713716]
[1750117238543,0.39173998,107340.0,107330.0,0.48713716]
[1750117238783,0.38242397,107340.0,107330.0,0.48713716]
[1750117238990,0.3917399,107340.0,107330.0,0.48713716]
[1750117239190,0.36379255,107340.0,107330.0,0.48713716]
[1750117239334,0.37558145,107340.0,107330.0,0.48713716]
[1750117239535,0.35695055,107340.0,107330.0,0.48713716]
[1750117239742,0.34125055,107340.0,107330.0,0.48713716]
[1750117239941,0.34625055,107340.0,107330.0,0.48713716]
[1750117240144,0.32985055,107340.0,107330.0,0.48713716]
[1750117240717,0.00747341,107340.0,107330.0,0.50323716]
[1750117241784,0.00747341,107340.0,107330.0,0.51973716]
[1750117243893,0.66985055,107340.0,107330.0,0.31973716]
[1750117244403,0.66985055,107340.0,107330.0,0.53577716]
[1750117246112,0.68635055,107340.0,107330.0,0.31973716]
[1750117246320,0.70498145,107340.0,107330.0,0.31973716]
[1750117246473,0.73991278,107340.0,107330.0,0.48705716]
[1750117246683,0.74922879,107340.0,107330.0,0.31973716]
[1750117246920,0.71196596,107340.0,107330.0,0.48705716]
[1750117247138,0.68635055,107340.0,107330.0,0.48705716]
[1750117247992,0.70265055,107340.0,107330.0,0.48705716]
[1750117248211,0.71196613,107340.0,107330.0,0.48705716]
[1750117248620,0.71196604,107340.0,107330.0,0.48705716]
[1750117248837,0.70265055,107340.0,107330.0,0.48705716]
[1750117249072,0.68635055,107340.0,107330.0,0.48705716]
[1750117249528,0.69566604,107340.0,107330.0,0.48705716]
[1750117249741,0.68635055,107340.0,107330.0,0.48705716]
[1750117250628,0.66985055,107340.0,107330.0,0.48705716]
[1750117251383,0.68565055,107340.0,107330.0,0.48705716]
[1750117251623,0.70428162,107340.0,107330.0,0.48705716]
[1750117252379,0.71359729,107340.0,107330.0,0.48705716]
[1750117252854,0.70428162,107340.0,107330.0,0.48705716]
[1750117253092,0.68565055,107340.0,107330.0,0.48705716]
[1750117254452,0.36327341,107340.0,107330.0,0.48705716]
[1750117254699,0.68565055,107340.0,107330.0,0.48705716]
[1750117254925,0.70428171,107340.0,107330.0,0.48705716]
[1750117255156,0.72291356,107340.0,107330.0,0.48705716]
[1750117255392,0.71359755,107340.0,107330.0,0.48705716]
[1750117256230,0.70428171,107340.0,107330.0,0.48705716]
[1750117256424,0.70428162,107340.0,107330.0,0.48705716]
[1750117256634,0.71359737,107340.0,107330.0,0.48705716]
[1750117257274,0.7229133,107340.0,107330.0,0.48705716]
[1750117257779,0.71359737,107340.0,107330.0,0.48705716]
[1750117258189,0.70428162,107340.0,107330.0,0.48705716]
[1750117258425,0.66985055,107340.0,107330.0,0.48705716]
[1750117258672,0.3567889,107340.0,107330.0,0.48705716]
[1750117258886,0.66985055,107340.0,107330.0,0.48705716]
[1750117259322,0.68848179,107340.0,107330.0,0.31973716]
[1750117259534,0.71116604,107340.0,107330.0,0.48693716]
[1750117259777,0.72048179,107340.0,107330.0,0.48693716]
[1750117260017,0.72979772,107340.0,107330.0,0.48693716]
[1750117260230,0.72979772,107340.0,107320.0,0.20496185]
[1750117260231,0.39226647,107330.0,107320.0,0.20496185]
[1750117260449,0.39226647,107330.0,107310.0,0.33054674]
[1750117260450,0.24551162,107320.0,107310.0,0.19569454]
[1750117260677,1.2302659,107320.0,107310.0,0.35353592]
[1750117260895,0.03363662,107310.0,107300.0,0.20497086]
[1750117261128,0.38153246,107310.0,107300.0,0.19565224]
[1750117261346,0.38153246,107310.0,107300.0,0.38145104]
[1750117261564,0.38153246,107310.0,107300.0,0.39077009]
[1750117261776,0.38153229,107310.0,107300.0,0.39077009]
[1750117262007,0.39085099,107310.0,107300.0,0.39077009]
[1750117262265,0.06847691,107300.0,107290.0,0.20498423]
[1750117262557,0.39085483,107300.0,107290.0,0.21430502]
[1750117262799,0.39085483,107300.0,107280.0,0.23430876]
[1750117262800,0.04984044,107290.0,107280.0,0.23430876]
[1750117263038,0.56794807,107290.0,107280.0,0.39214788]
[1750117263305,1.3171546,107290.0,107280.0,0.02]
[1750117263541,1.30783451,107290.0,107280.0,0.02]
[1750117263774,0.99525057,107290.0,107280.0,0.21574943]
[1750117263994,0.99525057,107290.0,107280.0,0.02]
[1750117264244,1.00025057,107290.0,107280.0,0.18712]
[1750117264472,1.31330762,107290.0,107280.0,0.18712]
[1750117264702,1.32269066,107290.0,107280.0,0.18712]
[1750117265168,1.32469066,107290.0,107280.0,0.18712]
[1750117265624,1.42847327,107290.0,107280.0,0.02]
[1750117265858,0.39044392,107270.0,107260.0,0.39087413]
[1750117266100,0.77983126,107270.0,107260.0,0.39087413]
[1750117266392,0.69417714,107270.0,107260.0,0.39087413]
[1750117266632,0.34,107270.0,107260.0,0.56134461]
[1750117267103,0.34,107270.0,107260.0,0.61394461]
[1750117267566,0.34,107270.0,107260.0,0.66242461]
[1750117268070,0.344,107270.0,107260.0,0.44682461]
[1750117268313,0.344,107270.0,107260.0,0.66246461]
[1750117268558,0.344,107270.0,107260.0,0.58823589]
[1750117268853,0.66637714,107270.0,107260.0,0.57189589]
[1750117269315,0.67337714,107270.0,107260.0,0.57189589]
[1750117269547,0.67337714,107270.0,107260.0,0.36847589]
[1750117269776,0.79394793,107270.0,107260.0,0.22375413]
[1750117270005,0.72272045,107270.0,107260.0,0.39087413]
[1750117270489,0.72272037,107270.0,107260.0,0.39087413]
[1750117270722,0.7320422,107270.0,107260.0,0.39087413]
[1750117270984,0.72272037,107270.0,107260.0,0.39087413]
[1750117271213,0.68847714,107270.0,107260.0,0.39087413]
[1750117271854,0.69779871,107270.0,107260.0,0.39087413]
[1750117272083,0.68847714,107270.0,107260.0,0.39087413]
[1750117272546,0.69779862,107270.0,107260.0,0.22375413]
[1750117272828,0.68847714,107270.0,107260.0,0.39087413]
[1750117273279,0.67337714,107270.0,107260.0,0.39087413]
[1750117273756,0.67337714,107270.0,107260.0,0.48711589]
[1750117273757,0.351,107270.0,107260.0,0.48711589]
[1750117273987,0.351,107270.0,107260.0,0.51951589]
[1750117274690,0.347,107270.0,107260.0,0.51951589]
[1750117275131,0.347,107270.0,107260.0,0.31999589]
[1750117275132,0.66337714,107270.0,107260.0,0.31999589]
[1750117275383,0.66337714,107270.0,107260.0,0.53559589]
[1750117275598,0.66737714,107270.0,107260.0,0.53659589]
[1750117275828,0.66737714,107270.0,107260.0,0.48807589]
[1750117276061,0.66737714,107270.0,107260.0,0.32099589]
[1750117276293,0.66737714,107270.0,107260.0,0.48807589]
[1750117277201,0.67669862,107270.0,107260.0,0.48807589]
[1750117277416,0.70222028,107270.0,107260.0,0.48807589]
[1750117277845,0.77397403,107270.0,107260.0,0.22475413]
[1750117278066,0.74558621,107270.0,107260.0,0.22475421]
[1750117278282,0.90406665,107270.0,107260.0,0.3545428]
[1750117278723,0.90406665,107270.0,107260.0,0.36386576]
[1750117278942,0.88542255,107270.0,107260.0,0.16808]
[1750117279175,0.97657177,107270.0,107260.0,0.16708]
[1750117279408,1.00453787,107270.0,107260.0,0.38151178]
[1750117279634,0.99989395,107270.0,107260.0,0.16808]
[1750117280092,0.99989395,107270.0,107260.0,0.001]
[1750117280308,0.99989395,107270.0,107260.0,0.16804]
[1750117280571,0.67751681,107270.0,107260.0,0.001]
[1750117280797,0.99989395,107270.0,107260.0,0.001]
[1750117281228,1.0218694,107270.0,107260.0,0.001]
[1750117281897,0.99989395,107270.0,107260.0,0.20610881]
[1750117282122,0.99989395,107270.0,107260.0,0.19678594]
[1750117282336,1.00921622,107270.0,107260.0,0.001]
[1750117282794,1.03119882,107270.0,107260.0,0.001]
[1750117284393,1.12744058,107270.0,107260.0,0.001]
[1750117285049,1.1694495,107270.0,107260.0,0.001]
[1750117285261,1.20622992,107270.0,107260.0,0.001]
[1750117285469,1.17876185,107270.0,107260.0,0.001]
[1750117285683,1.20625608,107270.0,107260.0,0.001]
[1750117285897,1.17876185,107270.0,107260.0,0.001]
[1750117286114,1.20625588,107270.0,107260.0,0.001]
[1750117286342,1.17876185,107270.0,107260.0,0.001]
[1750117286556,1.23393248,107270.0,107260.0,0.001]
[1750117286776,1.17876185,107270.0,107260.0,0.001]
[1750117287079,1.34580185,107270.0,107260.0,0.001]
[1750117287945,1.40097248,107270.0,107260.0,0.001]
[1750117288423,1.36419206,107270.0,107260.0,0.001]
[1750117289060,6.40513906,107270.0,107260.0,0.001]
[1750117289269,6.42352927,107270.0,107260.0,0.001]
[1750117289705,6.34996843,107270.0,107260.0,0.001]
[1750117289914,0.56681985,107250.0,107240.0,0.16704]
[1750117290151,0.93877582,107250.0,107240.0,0.16704]
[1750117290359,0.97416539,107250.0,107240.0,0.16704]
[1750117290571,0.37394844,107240.0,107230.0,0.46499902]
[1750117290787,0.73695741,107240.0,107230.0,0.46499902]
[1750117291032,0.72763271,107240.0,107230.0,0.46499902]
[1750117291252,0.73742994,107240.0,107230.0,0.46499902]
[1750117291471,0.71280524,107240.0,107230.0,0.46499902]
[1750117291700,0.00932505,107230.0,107220.0,0.21579188]
[1750117291939,0.57750159,107230.0,107220.0,0.39211884]
[1750117292203,0.35368487,107230.0,107220.0,0.41077111]
[1750117292659,0.38187483,107230.0,107220.0,0.41077111]
[1750117292890,0.59891536,107230.0,107220.0,0.23444511]
[1750117293106,0.61531597,107230.0,107220.0,0.23444511]
[1750117293342,0.38442396,107230.0,107220.0,0.42009729]
[1750117293582,0.34935974,107230.0,107220.0,0.25309729]
[1750117293812,0.68935974,107230.0,107220.0,0.53263905]
[1750117294248,0.66237714,107230.0,107220.0,0.53263905]
[1750117294931,0.66437714,107230.0,107220.0,0.53263905]
[1750117295173,0.68643466,107230.0,107220.0,0.51633905]
[1750117295625,0.70508484,107230.0,107220.0,0.51633905]
[1750117295850,0.72088484,107230.0,107220.0,0.24377129]
[1750117296096,0.84875954,107230.0,107220.0,0.25309729]
[1750117296318,1.03860007,107230.0,107220.0,0.22511884]
[1750117296542,0.51505692,107230.0,107220.0,0.41077111]
[1750117296770,0.85208503,107230.0,107220.0,0.41077111]
[1750117297002,0.86141069,107230.0,107220.0,0.41077111]
[1750117297283,0.86541069,107230.0,107220.0,0.2437712]
[1750117297509,0.86941147,107230.0,107220.0,0.2437712]
[1750117297727,0.86941147,107230.0,107220.0,0.39207884]
[1750117297728,1.03727581,107230.0,107220.0,0.39207884]
[1750117297953,0.85076085,107230.0,107220.0,0.40140493]
[1750117298225,0.85075981,107230.0,107220.0,0.41073093]
[1750117298453,0.86008521,107230.0,107220.0,0.41077093]
[1750117298706,0.85075964,107230.0,107220.0,0.41077093]
[1750117298967,0.37205752,107230.0,107220.0,0.41077093]
[1750117299195,0.69443466,107230.0,107220.0,0.41077093]
[1750117299431,0.70375962,107230.0,107220.0,0.41077093]
[1750117299665,0.69443466,107230.0,107220.0,0.41077093]
[1750117299900,0.69443466,107230.0,107220.0,0.50701269]
[1750117304155,0.71308484,107230.0,107220.0,0.50701269]
[1750117304621,0.69443466,107230.0,107220.0,0.50701269]
[1750117305146,0.70375971,107230.0,107220.0,0.50701269]
[1750117305403,0.73173581,107230.0,107220.0,0.50701269]
[1750117305665,0.74743581,107230.0,107220.0,0.50701269]
[1750117306485,0.93395077,107230.0,107220.0,0.3213606]
[1750117306754,0.75676147,107230.0,107220.0,0.50693269]
[1750117307015,0.43438433,107230.0,107220.0,0.50693269]
[1750117307273,0.94062625,107230.0,107220.0,0.38277889]
[1750117307634,0.94062625,107230.0,107220.0,0.39210533]
[1750117307835,1.04014359,107230.0,107220.0,0.18692]
[1750117308616,1.07693856,107230.0,107220.0,0.02]
[1750117309124,1.07093856,107230.0,107220.0,0.02]
[1750117309397,1.07893856,107230.0,107220.0,0.02]
[1750117309923,0.75256125,107230.0,107220.0,0.21585897]
[1750117310185,1.03814342,107230.0,107220.0,0.02]
[1750117310472,1.04314342,107230.0,107220.0,0.02]
[1750117310770,1.07993839,107230.0,107220.0,0.02]
[1750117311271,1.07996491,107230.0,107220.0,0.02]
[1750117311713,1.14858392,107230.0,107220.0,0.02]
[1750117311716,0.20520412,107210.0,107200.0,0.00580276]
[1750117312002,0.60895844,107210.0,107200.0,0.37790637]
[1750117312264,0.58133878,107210.0,107200.0,0.38723438]
[1750117312520,0.36946145,107210.0,107200.0,0.39656212]
[1750117312739,0.38811546,107210.0,107200.0,0.39656212]
[1750117312980,0.40144277,107210.0,107200.0,0.39656212]
[1750117313217,0.36708832,107210.0,107200.0,0.39656212]
[1750117313455,0.37641537,107210.0,107200.0,0.39656212]
[1750117313917,0.38241537,107210.0,107200.0,0.39656212]
[1750117314188,0.35443466,107210.0,107200.0,0.39656212]
[1750117314404,0.33237714,107210.0,107200.0,0.52400388]
[1750117314623,0.01,107210.0,107200.0,0.52400388]
[1750117315052,0.33237714,107210.0,107200.0,0.52400388]
[1750117315746,0.32637714,107210.0,107200.0,0.52400388]
[1750117315981,0.008,107210.0,107200.0,0.52400388]
[1750117316233,0.33037714,107210.0,107200.0,0.52400388]
[1750117316675,0.32637714,107210.0,107200.0,0.52400388]
[1750117316901,0.32637714,107210.0,107200.0,0.50800388]
[1750117317141,0.34503071,107210.0,107200.0,0.49280388]
[1750117317365,0.36561467,107210.0,107200.0,0.32592388]
[1750117317585,0.34696075,107210.0,107200.0,0.39652212]
[1750117317819,0.35628762,107210.0,107200.0,0.39652212]
[1750117318039,0.33763405,107210.0,107200.0,0.39652212]
[1750117318268,0.32837714,107210.0,107200.0,0.39652212]
[1750117319431,0.33770393,107210.0,107200.0,0.22968212]
[1750117319662,0.32837714,107210.0,107200.0,0.39652212]
[1750117320807,0.32837714,107210.0,107200.0,0.22968212]
[1750117321043,0.27398358,107210.0,107200.0,0.22035419]
[1750117321280,1.16362197,107210.0,107200.0,0.00580276]
[1750117321507,1.17639085,107210.0,107200.0,0.00580276]
[1750117321733,1.17439085,107210.0,107200.0,0.00580276]
[1750117321975,1.17039085,107210.0,107200.0,0.00580276]
[1750117322204,1.18683374,107210.0,107200.0,0.00580276]
[1750117322423,1.17983374,107210.0,107200.0,0.00580276]
[1750117322644,1.34663374,107210.0,107200.0,0.00580276]
[1750117322864,1.35563374,107210.0,107200.0,0.19236992]
[1750117323151,0.86777286,107210.0,107200.0,0.21102628]
[1750117323384,0.89042748,107210.0,107200.0,0.21102628]
[1750117323596,0.89042748,107210.0,107200.0,0.20169819]
[1750117323809,0.88642748,107210.0,107200.0,0.21102637]
[1750117324026,0.9825767,107210.0,107200.0,0.22035446]
[1750117324242,1.23690635,107210.0,107200.0,0.22035446]
[1750117324501,1.23690635,107210.0,107200.0,0.00580276]
[1750117324721,1.22757895,107210.0,107200.0,0.00580276]
[1750117324953,1.35701315,107210.0,107200.0,0.00580276]
[1750117325177,1.03363926,107210.0,107200.0,0.00580276]
[1750117325925,1.35701315,107210.0,107200.0,0.00580276]
[1750117326174,1.03363926,107210.0,107200.0,0.21102645]
[1750117326632,1.03363926,107210.0,107200.0,0.00580276]
[1750117327110,1.03363926,107210.0,107200.0,0.19236992]
[1750117327320,1.03363926,107210.0,107200.0,0.2016981]
[1750117327541,0.52371535,107210.0,107200.0,0.21102611]
[1750117327771,0.8657436,107210.0,107200.0,0.21102611]
[1750117327992,0.8564162,107210.0,107200.0,0.22035385]
[1750117328240,0.87507099,107210.0,107200.0,0.22035403]
[1750117328471,0.71823959,107210.0,107200.0,0.39648177]
[1750117328732,0.014,107210.0,107200.0,0.41238177]
[1750117328983,0.014,107210.0,107200.0,0.52512353]
[1750117329226,0.67737389,107210.0,107200.0,0.35832353]
[1750117329486,0.67737389,107210.0,107200.0,0.52508353]
[1750117329487,0.014,107210.0,107200.0,0.52508353]
[1750117329933,0.009,107210.0,107200.0,0.52508353]
[1750117330163,0.33252233,107230.0,107220.0,0.21451116]
[1750117330382,0.33252233,107230.0,107220.0,0.47751292]
[1750117330596,0.67252233,107230.0,107220.0,0.47751292]
[1750117331067,0.68202398,107230.0,107220.0,0.47751292]
[1750117331487,0.67269885,107230.0,107220.0,0.47751292]
[1750117331698,0.6820239,107230.0,107220.0,0.47751292]
[1750117332352,0.34932496,107230.0,107220.0,0.47751292]
[1750117332609,0.69302398,107230.0,107220.0,0.47751292]
[1750117332847,0.68037389,107230.0,107220.0,0.47751292]
[1750117333325,0.357,107230.0,107220.0,0.47751292]
[1750117333549,0.68969885,107230.0,107220.0,0.47751292]
[1750117333770,0.68037389,107230.0,107220.0,0.47751292]
[1750117333984,0.69902425,107230.0,107220.0,0.47751292]
[1750117334221,0.68969894,107230.0,107220.0,0.47751292]
[1750117334426,0.69920647,107230.0,107220.0,0.47751292]
[1750117334664,0.70853169,107230.0,107220.0,0.47751292]
[1750117335134,0.69920647,107230.0,107220.0,0.47751292]
[1750117335358,0.68988142,107230.0,107220.0,0.47751292]
[1750117335587,0.69920638,107230.0,107220.0,0.47751292]
[1750117335818,0.68988142,107230.0,107220.0,0.47751292]
[1750117336272,0.69920655,107230.0,107220.0,0.47751292]
[1750117336499,0.71785735,107230.0,107220.0,0.21451116]
[1750117336713,0.73335726,107230.0,107220.0,0.38123116]
[1750117337159,0.72403178,107230.0,107220.0,0.38123116]
[1750117337387,0.69920647,107230.0,107220.0,0.38123116]
[1750117337855,0.69920638,107230.0,107220.0,0.38123116]
[1750117338108,0.68988142,107230.0,107220.0,0.38123116]
[1750117338370,0.69920647,107230.0,107220.0,0.38119116]
[1750117338647,0.7085316,107230.0,107220.0,0.38119116]
[1750117338879,0.71785691,107230.0,107220.0,0.38119116]
[1750117339152,0.72718239,107230.0,107220.0,0.38119116]
[1750117339428,0.71785691,107230.0,107220.0,0.38119116]
[1750117339646,0.72718239,107230.0,107220.0,0.38119116]
[1750117339879,0.73650796,107230.0,107220.0,0.38119116]
[1750117340107,1.02309665,107230.0,107220.0,0.38119141]
[1750117340337,1.02309665,107230.0,107220.0,0.37186532]
[1750117340552,0.92694743,107230.0,107220.0,0.38119159]
[1750117341020,0.60357354,107230.0,107220.0,0.38119159]
[1750117341232,0.72453212,107230.0,107220.0,0.39984377]
[1750117341464,0.74318335,107230.0,107220.0,0.39984377]
[1750117342387,1.23648335,107230.0,107220.0,0.39984377]
[1750117342621,1.22048335,107230.0,107220.0,0.39984377]
[1750117343273,1.21115769,107230.0,107220.0,0.23316377]
[1750117343490,1.20183212,107230.0,107220.0,0.39980377]
[1750117343747,1.21115769,107230.0,107220.0,0.22383777]
[1750117343970,0.02797837,107220.0,107210.0,0.20518937]
[1750117344196,0.21451125,107220.0,107210.0,0.2052043]
[1750117344432,0.22973142,107210.0,107200.0,0.2016981]
[1750117344660,0.36452592,107220.0,107210.0,0.21453117]
[1750117344883,0.36797836,107220.0,107210.0,0.21453117]
[1750117345148,0.56383733,107220.0,107210.0,0.21453135]
[1750117345371,0.66593454,107220.0,107210.0,0.17596748]
[1750117345585,0.68573454,107220.0,107210.0,0.00932748]
[1750117345805,1.20284708,107220.0,107210.0,0.37184464]
[1750117346282,1.20284708,107220.0,107210.0,0.39049909]
[1750117346720,1.10669786,107220.0,107210.0,0.37184464]
[1750117346942,1.09737151,107220.0,107200.0,0.2110255]
[1750117347162,0.25855627,107210.0,107200.0,0.22035307]
[1750117347394,0.03445419,107210.0,107200.0,0.22035376]
[1750117347633,0.27721046,107210.0,107200.0,0.38695376]
[1750117347845,0.28653777,107210.0,107200.0,0.38695376]
[1750117348492,0.2925375,107210.0,107200.0,0.38695376]
[1750117348944,0.47908717,107210.0,107200.0,0.00580276]
[1750117349158,0.51448761,107210.0,107200.0,0.36829819]
[1750117349385,0.51448761,107210.0,107200.0,0.37762628]
[1750117349595,0.51448761,107210.0,107200.0,0.38695429]
[1750117349806,0.49788761,107210.0,107200.0,0.39628221]
[1750117350032,0.49488761,107210.0,107200.0,0.40561004]
[1750117350250,0.29901011,107210.0,107200.0,0.23900951]
[1750117350455,0.29253733,107210.0,107200.0,0.40560951]
[1750117351086,0.29586481,107210.0,107200.0,0.40560951]
[1750117351308,0.31906481,107210.0,107200.0,0.40560951]
[1750117351516,0.31373802,107210.0,107200.0,0.38695394]
[1750117351730,0.596437,107210.0,107200.0,0.37762602]
[1750117352162,0.49096073,107210.0,107200.0,0.37762645]
[1750117352380,0.012,107210.0,107200.0,0.3962822]
[1750117352656,0.012,107210.0,107200.0,0.52462396]
[1750117354190,0.61055627,107210.0,107200.0,0.52462396]
[1750117354404,0.60655627,107210.0,107200.0,0.57262396]
[1750117354746,0.60955627,107210.0,107200.0,0.57262396]
[1750117354986,0.351,107210.0,107200.0,0.35802396]
[1750117355206,0.60155627,107210.0,107200.0,0.57258396]
[1750117355415,0.35,107210.0,107200.0,0.57258396]
[1750117355626,0.60855627,107210.0,107200.0,0.57258396]
[1750117356362,0.60855627,107210.0,107200.0,0.34212396]
[1750117356609,0.60855627,107210.0,107200.0,0.54048396]
[1750117356771,0.60855627,107210.0,107200.0,0.57208396]
[1750117357563,0.60855627,107210.0,107200.0,0.35752396]
[1750117357732,0.60855627,107210.0,107200.0,0.57208396]
[1750117359124,0.60855627,107210.0,107200.0,0.35752396]
[1750117359313,0.60855627,107210.0,107200.0,0.55588396]
[1750117359783,0.60855627,107210.0,107200.0,0.50788396]
[1750117361234,0.60855627,107210.0,107200.0,0.32592396]
[1750117361450,0.60855627,107210.0,107200.0,0.49244396]
[1750117361899,0.63653768,107210.0,107200.0,0.30726821]
[1750117362120,0.65273768,107210.0,107200.0,0.22968229]
[1750117362352,0.86391492,107210.0,107200.0,0.38687454]
[1750117362565,0.86391492,107210.0,107200.0,0.39620255]
[1750117362988,0.85458805,107210.0,107200.0,0.39620255]
[1750117363968,1.34788805,107210.0,107200.0,0.00580276]
[1750117364185,1.44403727,107210.0,107200.0,0.00580276]
[1750117364413,1.43471013,107210.0,107200.0,0.17232276]
[1750117364644,1.42538273,107210.0,107200.0,0.17232276]
[1750117364882,1.33856073,107210.0,107200.0,0.37754602]
[1750117365105,1.11805627,107210.0,107200.0,0.38687376]
[1750117365373,1.11118306,107210.0,107200.0,0.22035376]
[1750117365595,1.12051011,107210.0,107200.0,0.38687376]
[1750117365822,1.12051002,107210.0,107200.0,0.38687376]
[1750117366035,1.10185627,107210.0,107200.0,0.38687376]
[1750117366246,1.11118314,107210.0,107200.0,0.38687376]
[1750117366463,1.1298375,107210.0,107200.0,0.38687376]
[1750117366679,1.14603741,107210.0,107200.0,0.38687376]
[1750117367128,1.15536472,107210.0,107200.0,0.38687376]
[1750117367898,1.12738314,107210.0,107200.0,0.38687376]
[1750117368102,1.13671019,107210.0,107200.0,0.38687376]
[1750117368342,1.13671019,107210.0,107200.0,0.38683376]
[1750117368343,1.1460375,107210.0,107200.0,0.38683376]
[1750117368804,1.12738314,107210.0,107200.0,0.38683376]
[1750117369022,1.13671011,107210.0,107200.0,0.38683376]
[1750117369265,0.86882679,107210.0,107200.0,0.38683376]
[1750117369498,1.12738306,107210.0,107200.0,0.38683376]
[1750117369715,1.11805627,107210.0,107200.0,0.38683376]
[1750117370554,1.13671028,107210.0,107200.0,0.38683376]
[1750117370760,1.03671028,107210.0,107200.0,0.38683376]
[1750117370988,1.01805627,107210.0,107200.0,0.38683376]
[1750117371218,1.02738306,107210.0,107200.0,0.38683376]
[1750117371890,1.03671002,107210.0,107200.0,0.38683376]
[1750117372140,1.05536456,107210.0,107200.0,0.22035385]
[1750117372341,1.25791501,107210.0,107200.0,0.3681381]
[1750117373486,1.25791501,107210.0,107200.0,0.35880992]
[1750117373699,1.24858805,107210.0,107200.0,0.20169819]
[1750117373894,1.23926091,107210.0,107200.0,0.35880992]
[1750117374275,1.23926091,107210.0,107200.0,0.36813819]
[1750117374703,1.23926091,107210.0,107200.0,0.00580276]
[1750117374928,0.59499971,107190.0,107180.0,0.711699]
[1750117375147,1.10278381,107190.0,107180.0,0.50644]
[1750117375376,1.10278381,107190.0,107180.0,0.51577009]
[1750117375601,1.10278381,107190.0,107180.0,0.5251001]
[1750117375846,0.56074283,107190.0,107180.0,0.34]
[1750117376070,1.09345537,107190.0,107180.0,0.34]
[1750117376343,1.09392761,107190.0,107180.0,0.34]
[1750117376570,1.10092761,107190.0,107180.0,0.34]
[1750117376787,1.10092761,107190.0,107180.0,0.5064]
[1750117377010,1.10092761,107190.0,107180.0,0.34]
[1750117377239,1.10092761,107190.0,107180.0,0.5064]
[1750117377454,1.10092761,107190.0,107180.0,0.335]
[1750117377694,1.10092761,107190.0,107180.0,0.5014]
[1750117378167,1.10092761,107190.0,107180.0,0.335]
[1750117378391,1.10292761,107190.0,107180.0,0.5014]
[1750117378624,1.10292761,107190.0,107180.0,0.68800197]
[1750117378847,1.10292761,107190.0,107180.0,0.5014]
[1750117380386,1.10292761,107190.0,107180.0,0.51072992]
[1750117380628,1.09359856,107190.0,107180.0,0.5014]
[1750117380846,1.1853676,107190.0,107180.0,0.69733189]
[1750117381080,0.56088585,107190.0,107180.0,0.54026164]
[1750117381299,0.63601444,107190.0,107180.0,0.71599112]
[1750117381734,0.62668556,107190.0,107180.0,0.71599112]
[1750117381977,0.60802851,107190.0,107180.0,0.73129112]
[1750117382197,0.26802851,107190.0,107180.0,0.74689112]
[1750117382420,0.26802851,107190.0,107180.0,0.67673288]
[1750117382642,0.34947224,107190.0,107180.0,0.84313288]
[1750117382863,0.60802851,107190.0,107180.0,0.84313288]
[1750117384717,0.26802851,107190.0,107180.0,0.84313288]
[1750117385578,0.00947224,107190.0,107180.0,0.84313288]
[1750117387351,0.00947224,107190.0,107180.0,0.67673288]